[Event "Titled Tuesday Blitz May 23 Early 2023"]
[White "Hercegovac, Neven"]
[Black "Srihari L R"]
[WhiteFideId "2839135"]
[BlackFideId "46617116"]
[WhiteElo "2075"]
[BlackElo "2334"]
[Result "1/2-1/2"]
[Round "01"]
[TimeControl "180+2"]
[Date "2023.05.23"]
[WhiteClock "0:00:35"]
[BlackClock "0:01:01"]

1. Nf3 {[%clk 0:02:59]}  g6 {[%clk 0:02:56]} 2. e4 {[%clk 0:02:39]}  Bg7 {[%clk 0:02:56]} 3. d4 {[%clk 0:02:37]}  d6 {[%clk 0:02:57]} 4. c3 {[%clk 0:02:34]}  Nf6 {[%clk 0:02:55]} 5. Bd3 {[%clk 0:02:31]}  O-O {[%clk 0:02:55]} 6. O-O {[%clk 0:02:28]}  Nc6 {[%clk 0:02:56]} 7. Re1 {[%clk 0:02:26]}  e5 {[%clk 0:02:56]} 8. h3 {[%clk 0:02:25]}  h6 {[%clk 0:02:55]} 9. Be3 {[%clk 0:02:21]}  Nh5 {[%clk 0:02:53]} 10. Nbd2 {[%clk 0:02:16]}  Bd7 {[%clk 0:02:45]} 11. Bf1 {[%clk 0:01:37]}  Nf4 {[%clk 0:02:32]} 12. Bxf4 {[%clk 0:01:29]}  exf4 {[%clk 0:02:32]} 13. a4 {[%clk 0:01:18]}  g5 {[%clk 0:02:31]} 14. Nh2 {[%clk 0:01:16]}  Rb8 {[%clk 0:02:25]} 15. Qh5 {[%clk 0:01:15]}  Qf6 {[%clk 0:02:18]} 16. Ng4 {[%clk 0:01:08]}  Qg6 {[%clk 0:02:17]} 17. Qxg6 {[%clk 0:01:08]}  fxg6 {[%clk 0:02:18]} 18. Bc4+ {[%clk 0:01:07]}  Kh7 {[%clk 0:02:18]} 19. f3 {[%clk 0:01:05]}  h5 {[%clk 0:02:15]} 20. Nf2 {[%clk 0:01:04]}  a6 {[%clk 0:02:09]} 21. a5 {[%clk 0:01:04]}  Ne7 {[%clk 0:02:06]} 22. Nd3 {[%clk 0:00:58]}  Ng8 {[%clk 0:02:04]} 23. e5 {[%clk 0:00:55]}  dxe5 {[%clk 0:02:00]} 24. Nxe5 {[%clk 0:00:56]}  Bf5 {[%clk 0:02:00]} 25. Ne4 {[%clk 0:00:51]}  Bxe4 {[%clk 0:01:57]} 26. Rxe4 {[%clk 0:00:51]}  Nf6 {[%clk 0:01:52]} 27. Re2 {[%clk 0:00:49]}  c5 {[%clk 0:01:51]} 28. dxc5 {[%clk 0:00:47]}  Rbc8 {[%clk 0:01:49]} 29. Bd3 {[%clk 0:00:42]}  Rxc5 {[%clk 0:01:42]} 30. Nxg6 {[%clk 0:00:42]}  Rd8 {[%clk 0:01:41]} 31. Bc2 {[%clk 0:00:42]}  Kg8 {[%clk 0:01:36]} 32. Ne7+ {[%clk 0:00:40]}  Kf7 {[%clk 0:01:31]} 33. Nf5 {[%clk 0:00:41]}  Bf8 {[%clk 0:01:31]} 34. Nd4 {[%clk 0:00:37]}  Rcc8 {[%clk 0:01:17]} 35. Bb3+ {[%clk 0:00:36]}  Kg6 {[%clk 0:01:15]} 36. Bc2+ {[%clk 0:00:36]}  Kf7 {[%clk 0:01:11]} 37. Bb3+ {[%clk 0:00:35]}  Kg6 {[%clk 0:01:09]} 38. Bc2+ {[%clk 0:00:35]}  Kf7 {[%clk 0:01:01]} 1/2-1/2


[Site "https://www.chess.com"]

[Event "Titled Tuesday Blitz May 23 Early 2023"]
[White "Itgelt, Khuyagtsogt"]
[Black "Goswami, Vedant"]
[WhiteFideId "4902912"]
[BlackFideId "5003725"]
[WhiteElo "2227"]
[BlackElo "2011"]
[Result "1/2-1/2"]
[Round "01"]
[TimeControl "180+2"]
[Date "2023.05.23"]
[WhiteClock "0:00:28"]
[BlackClock "0:01:14"]

1. d4 {[%clk 0:02:58]}  g6 {[%clk 0:02:59]} 2. c4 {[%clk 0:02:57]}  Bg7 {[%clk 0:02:58]} 3. g3 {[%clk 0:02:56]}  d6 {[%clk 0:02:56]} 4. Bg2 {[%clk 0:02:55]}  c6 {[%clk 0:02:55]} 5. Nc3 {[%clk 0:02:55]}  Bd7 {[%clk 0:02:56]} 6. Nf3 {[%clk 0:02:55]}  Qc8 {[%clk 0:02:56]} 7. h4 {[%clk 0:02:48]}  h5 {[%clk 0:02:45]} 8. e4 {[%clk 0:02:42]}  Nh6 {[%clk 0:02:39]} 9. O-O {[%clk 0:02:31]}  Bh3 {[%clk 0:02:38]} 10. Re1 {[%clk 0:02:22]}  Bxg2 {[%clk 0:02:36]} 11. Kxg2 {[%clk 0:02:23]}  Ng4 {[%clk 0:02:33]} 12. Bf4 {[%clk 0:02:14]}  Nd7 {[%clk 0:02:18]} 13. e5 {[%clk 0:02:03]}  dxe5 {[%clk 0:02:14]} 14. Nxe5 {[%clk 0:01:41]}  Ngxe5 {[%clk 0:02:07]} 15. dxe5 {[%clk 0:01:38]}  Nc5 {[%clk 0:02:06]} 16. Ne4 {[%clk 0:01:27]}  Nxe4 {[%clk 0:02:01]} 17. Rxe4 {[%clk 0:01:28]}  Qe6 {[%clk 0:01:53]} 18. Qb3 {[%clk 0:01:24]}  O-O-O {[%clk 0:01:48]} 19. Re3 {[%clk 0:01:03]}  Rd7 {[%clk 0:01:45]} 20. a4 {[%clk 0:00:53]}  Rhd8 {[%clk 0:01:42]} 21. a5 {[%clk 0:00:54]}  Rd4 {[%clk 0:01:34]} 22. a6 {[%clk 0:00:51]}  b6 {[%clk 0:01:33]} 23. Rc1 {[%clk 0:00:50]}  c5 {[%clk 0:01:31]} 24. Ree1 {[%clk 0:00:42]}  Qc6+ {[%clk 0:01:30]} 25. Qf3 {[%clk 0:00:40]}  Qxf3+ {[%clk 0:01:26]} 26. Kxf3 {[%clk 0:00:41]}  e6 {[%clk 0:01:23]} 27. Ke2 {[%clk 0:00:36]}  Re4+ {[%clk 0:01:16]} 28. Kf1 {[%clk 0:00:29]}  Red4 {[%clk 0:01:16]} 29. Ke2 {[%clk 0:00:28]}  Re4+ {[%clk 0:01:14]} 30. Kf1 {[%clk 0:00:29]}  Red4 {[%clk 0:01:14]} 31. Ke2 {[%clk 0:00:28]} 1/2-1/2


[Site "https://www.chess.com"]

[Event "Titled Tuesday Blitz May 23 Early 2023"]
[White "Travadon, Loic"]
[Black "Stoleriu, George"]
[WhiteFideId "26092131"]
[BlackFideId "1227505"]
[WhiteElo "2405"]
[BlackElo "2308"]
[Result "0-1"]
[Round "01"]
[TimeControl "180+2"]
[Date "2023.05.23"]
[WhiteClock "0:00:05"]
[BlackClock "0:00:12"]

1. d4 {[%clk 0:02:55]}  Nf6 {[%clk 0:02:56]} 2. g4 {[%clk 0:02:42]}  Nxg4 {[%clk 0:02:23]} 3. e4 {[%clk 0:02:41]}  d5 {[%clk 0:02:20]} 4. Be2 {[%clk 0:02:36]}  Nf6 {[%clk 0:02:10]} 5. e5 {[%clk 0:02:36]}  Ng8 {[%clk 0:01:46]} 6. c3 {[%clk 0:02:35]}  c6 {[%clk 0:01:25]} 7. Nd2 {[%clk 0:02:30]}  Bf5 {[%clk 0:01:22]} 8. Nf1 {[%clk 0:02:27]}  e6 {[%clk 0:01:14]} 9. Ng3 {[%clk 0:02:26]}  Bg6 {[%clk 0:01:14]} 10. h4 {[%clk 0:02:21]}  h6 {[%clk 0:01:05]} 11. Be3 {[%clk 0:02:20]}  Ne7 {[%clk 0:01:01]} 12. h5 {[%clk 0:02:11]}  Bh7 {[%clk 0:00:58]} 13. f4 {[%clk 0:02:12]}  Nf5 {[%clk 0:00:57]} 14. Nxf5 {[%clk 0:02:03]}  Bxf5 {[%clk 0:00:58]} 15. Bd3 {[%clk 0:02:03]}  Bxd3 {[%clk 0:00:55]} 16. Qxd3 {[%clk 0:02:04]}  Qb6 {[%clk 0:00:41]} 17. Qd2 {[%clk 0:02:02]}  c5 {[%clk 0:00:36]} 18. Nf3 {[%clk 0:02:01]}  Nc6 {[%clk 0:00:36]} 19. a3 {[%clk 0:01:57]}  cxd4 {[%clk 0:00:25]} 20. Bxd4 {[%clk 0:01:46]}  Bc5 {[%clk 0:00:18]} 21. Rg1 {[%clk 0:01:43]}  Bxd4 {[%clk 0:00:18]} 22. Nxd4 {[%clk 0:01:42]}  Nxd4 {[%clk 0:00:15]} 23. cxd4 {[%clk 0:01:42]}  O-O-O {[%clk 0:00:11]} 24. Rxg7 {[%clk 0:01:40]}  Rhg8 {[%clk 0:00:10]} 25. Rc1+ {[%clk 0:01:36]}  Kb8 {[%clk 0:00:10]} 26. Rxg8 {[%clk 0:00:26]}  Rxg8 {[%clk 0:00:11]} 27. Rc3 {[%clk 0:00:26]}  Qd8 {[%clk 0:00:09]} 28. Kd1 {[%clk 0:00:21]}  Qh4 {[%clk 0:00:07]} 29. Kc2 {[%clk 0:00:19]}  Qxh5 {[%clk 0:00:07]} 30. Kb3 {[%clk 0:00:15]}  Rc8 {[%clk 0:00:04]} 31. Rxc8+ {[%clk 0:00:15]}  Kxc8 {[%clk 0:00:05]} 32. Qc2+ {[%clk 0:00:15]}  Kb8 {[%clk 0:00:03]} 33. Qc5 {[%clk 0:00:10]}  Qd1+ {[%clk 0:00:04]} 34. Ka2 {[%clk 0:00:09]}  Qd3 {[%clk 0:00:03]} 35. Qd6+ {[%clk 0:00:08]}  Kc8 {[%clk 0:00:04]} 36. Qf8+ {[%clk 0:00:08]}  Kd7 {[%clk 0:00:04]} 37. Qxf7+ {[%clk 0:00:09]}  Kd8 {[%clk 0:00:05]} 38. Qf8+ {[%clk 0:00:08]}  Kc7 {[%clk 0:00:05]} 39. Qd6+ {[%clk 0:00:09]}  Kc8 {[%clk 0:00:06]} 40. Qxe6+ {[%clk 0:00:09]}  Kb8 {[%clk 0:00:07]} 41. Qd6+ {[%clk 0:00:09]}  Kc8 {[%clk 0:00:07]} 42. Qc5+ {[%clk 0:00:09]}  Kb8 {[%clk 0:00:07]} 43. Qf8+ {[%clk 0:00:09]}  Kc7 {[%clk 0:00:08]} 44. Qg7+ {[%clk 0:00:09]}  Kb6 {[%clk 0:00:07]} 45. Qg2 {[%clk 0:00:05]}  Qc4+ {[%clk 0:00:07]} 46. b3 {[%clk 0:00:04]}  Qxd4 {[%clk 0:00:08]} 47. e6 {[%clk 0:00:04]}  Qe3 {[%clk 0:00:08]} 48. f5 {[%clk 0:00:03]}  d4 {[%clk 0:00:08]} 49. f6 {[%clk 0:00:02]}  Qxe6 {[%clk 0:00:07]} 50. Qf2 {[%clk 0:00:02]}  Qf7 {[%clk 0:00:05]} 51. Qxd4+ {[%clk 0:00:01]}  Kc7 {[%clk 0:00:05]} 52. Qe5+ {[%clk 0:00:02]}  Kd7 {[%clk 0:00:05]} 53. Kb2 {[%clk 0:00:02]}  Qe6 {[%clk 0:00:06]} 54. Qxe6+ {[%clk 0:00:02]}  Kxe6 {[%clk 0:00:07]} 55. Kc3 {[%clk 0:00:02]}  Kxf6 {[%clk 0:00:07]} 56. Kd4 {[%clk 0:00:03]}  Kf5 {[%clk 0:00:07]} 57. Kd5 {[%clk 0:00:04]}  h5 {[%clk 0:00:07]} 58. Kd6 {[%clk 0:00:05]}  h4 {[%clk 0:00:08]} 59. Kc7 {[%clk 0:00:06]}  h3 {[%clk 0:00:09]} 60. Kxb7 {[%clk 0:00:06]}  h2 {[%clk 0:00:10]} 61. Kxa7 {[%clk 0:00:07]}  h1=Q {[%clk 0:00:10]} 62. b4 {[%clk 0:00:08]}  Qd5 {[%clk 0:00:11]} 63. a4 {[%clk 0:00:08]}  Qc4 {[%clk 0:00:11]} 64. a5 {[%clk 0:00:08]}  Qxb4 {[%clk 0:00:12]} 65. a6 {[%clk 0:00:05]}  Qb5 {[%clk 0:00:12]} 0-1


[Site "https://www.chess.com"]

[Event "Titled Tuesday Blitz May 23 Early 2023"]
[White "Pacan-Milej, Kosma"]
[Black "Topalov, Aleksandar"]
[WhiteFideId "21800537"]
[BlackFideId "925659"]
[WhiteElo "2302"]
[BlackElo "2151"]
[Result "1-0"]
[Round "01"]
[TimeControl "180+2"]
[Date "2023.05.23"]
[WhiteClock "0:01:17"]
[BlackClock "0:00:45"]

1. d4 {[%clk 0:03:00]}  Nf6 {[%clk 0:02:56]} 2. c4 {[%clk 0:03:01]}  c5 {[%clk 0:02:55]} 3. d5 {[%clk 0:03:01]}  d6 {[%clk 0:02:54]} 4. Nc3 {[%clk 0:03:01]}  g6 {[%clk 0:02:54]} 5. e4 {[%clk 0:03:01]}  Bg7 {[%clk 0:02:53]} 6. h3 {[%clk 0:03:02]}  O-O {[%clk 0:02:53]} 7. Nf3 {[%clk 0:03:03]}  Na6 {[%clk 0:02:53]} 8. Bd3 {[%clk 0:03:03]}  Nc7 {[%clk 0:02:52]} 9. O-O {[%clk 0:03:03]}  e5 {[%clk 0:02:52]} 10. dxe6 {[%clk 0:03:02]}  Nxe6 {[%clk 0:02:52]} 11. Be3 {[%clk 0:03:00]}  Nd7 {[%clk 0:02:51]} 12. Qd2 {[%clk 0:02:58]}  Ne5 {[%clk 0:02:50]} 13. Nxe5 {[%clk 0:02:54]}  dxe5 {[%clk 0:02:47]} 14. Nd5 {[%clk 0:02:54]}  Nd4 {[%clk 0:02:46]} 15. f4 {[%clk 0:02:53]}  exf4 {[%clk 0:02:39]} 16. Bxf4 {[%clk 0:02:53]}  Be6 {[%clk 0:02:39]} 17. Bg5 {[%clk 0:02:49]}  f6 {[%clk 0:02:31]} 18. Bf4 {[%clk 0:02:49]}  Bxd5 {[%clk 0:02:29]} 19. exd5 {[%clk 0:02:49]}  Re8 {[%clk 0:02:22]} 20. Rae1 {[%clk 0:02:49]}  Qd7 {[%clk 0:02:20]} 21. Bg3 {[%clk 0:02:37]}  f5 {[%clk 0:02:19]} 22. Qf4 {[%clk 0:02:34]}  b6 {[%clk 0:02:12]} 23. Qc7 {[%clk 0:02:29]}  Qxc7 {[%clk 0:01:49]} 24. Bxc7 {[%clk 0:02:30]}  Kf7 {[%clk 0:01:48]} 25. b4 {[%clk 0:02:14]}  Rxe1 {[%clk 0:01:45]} 26. Rxe1 {[%clk 0:02:15]}  Re8 {[%clk 0:01:44]} 27. Rxe8 {[%clk 0:02:13]}  Kxe8 {[%clk 0:01:44]} 28. bxc5 {[%clk 0:02:13]}  bxc5 {[%clk 0:01:44]} 29. Bb8 {[%clk 0:01:56]}  a6 {[%clk 0:01:42]} 30. Kf2 {[%clk 0:01:48]}  Kd7 {[%clk 0:01:42]} 31. g4 {[%clk 0:01:47]}  fxg4 {[%clk 0:01:40]} 32. hxg4 {[%clk 0:01:47]}  Bf8 {[%clk 0:01:40]} 33. Be5 {[%clk 0:01:26]}  Bd6 {[%clk 0:01:28]} 34. Bg7 {[%clk 0:01:21]}  Ke7 {[%clk 0:01:13]} 35. Ke3 {[%clk 0:01:20]}  Bh2 {[%clk 0:01:03]} 36. Ke4 {[%clk 0:01:19]}  Kd6 {[%clk 0:01:00]} 37. Bf8+ {[%clk 0:01:17]}  Kd7 {[%clk 0:00:45]} 38. Bxc5 {[%clk 0:01:17]} 1-0


[Site "https://www.chess.com"]

[Event "Titled Tuesday Blitz May 23 Early 2023"]
[White "Herzog2012"]
[Black "Mendez Fortes, Eduardo Jesus"]
[BlackFideId "3502376"]
[WhiteElo "2360"]
[BlackElo "2307"]
[Result "0-1"]
[Round "01"]
[TimeControl "180+2"]
[Date "2023.05.23"]
[WhiteClock "0:00:02"]
[BlackClock "0:01:48"]

1. e4 {[%clk 0:03:00]}  c5 {[%clk 0:02:59]} 2. Nf3 {[%clk 0:03:00]}  d6 {[%clk 0:03:00]} 3. d4 {[%clk 0:03:01]}  cxd4 {[%clk 0:03:01]} 4. Nxd4 {[%clk 0:03:01]}  Nf6 {[%clk 0:03:02]} 5. Nc3 {[%clk 0:03:02]}  a6 {[%clk 0:03:02]} 6. Bc4 {[%clk 0:01:43]}  e6 {[%clk 0:03:01]} 7. O-O {[%clk 0:01:42]}  Be7 {[%clk 0:02:58]} 8. Qf3 {[%clk 0:01:39]}  O-O {[%clk 0:02:58]} 9. Bb3 {[%clk 0:01:37]}  Nc6 {[%clk 0:02:50]} 10. Nxc6 {[%clk 0:01:33]}  bxc6 {[%clk 0:02:50]} 11. Qg3 {[%clk 0:01:34]}  e5 {[%clk 0:02:48]} 12. Bh6 {[%clk 0:01:26]}  Nh5 {[%clk 0:02:48]} 13. Qf3 {[%clk 0:01:25]}  Nf6 {[%clk 0:02:47]} 14. Qg3 {[%clk 0:01:24]}  Ng4 {[%clk 0:02:47]} 15. Bd2 {[%clk 0:01:15]}  Kh8 {[%clk 0:02:47]} 16. h3 {[%clk 0:01:14]}  Nf6 {[%clk 0:02:46]} 17. Rad1 {[%clk 0:01:13]}  Qc7 {[%clk 0:02:39]} 18. Bg5 {[%clk 0:01:10]}  h6 {[%clk 0:02:35]} 19. Bxf6 {[%clk 0:01:07]}  Bxf6 {[%clk 0:02:35]} 20. Rd3 {[%clk 0:01:07]}  a5 {[%clk 0:02:34]} 21. Rfd1 {[%clk 0:01:06]}  Be7 {[%clk 0:02:24]} 22. Qf3 {[%clk 0:01:04]}  Be6 {[%clk 0:02:22]} 23. Qe2 {[%clk 0:00:55]}  Bc8 {[%clk 0:02:21]} 24. Qf3 {[%clk 0:00:53]}  f5 {[%clk 0:02:19]} 25. Qg3 {[%clk 0:00:33]}  f4 {[%clk 0:02:15]} 26. Qg6 {[%clk 0:00:32]}  Bd7 {[%clk 0:02:11]} 27. Rxd6 {[%clk 0:00:25]}  Bxd6 {[%clk 0:02:11]} 28. Qxd6 {[%clk 0:00:21]}  Qxd6 {[%clk 0:02:08]} 29. Rxd6 {[%clk 0:00:22]}  Rad8 {[%clk 0:02:05]} 30. Be6 {[%clk 0:00:09]}  Bxe6 {[%clk 0:02:00]} 31. Rxe6 {[%clk 0:00:10]}  Rd2 {[%clk 0:01:59]} 32. Rxe5 {[%clk 0:00:08]}  f3 {[%clk 0:01:58]} 33. g4 {[%clk 0:00:04]}  Rxc2 {[%clk 0:01:57]} 34. Rxa5 {[%clk 0:00:04]}  Rxb2 {[%clk 0:01:58]} 35. Rc5 {[%clk 0:00:05]}  Rd8 {[%clk 0:01:57]} 36. e5 {[%clk 0:00:05]}  Rdd2 {[%clk 0:01:57]} 37. Ne4 {[%clk 0:00:04]}  Re2 {[%clk 0:01:53]} 38. Rc4 {[%clk 0:00:03]}  Rb1+ {[%clk 0:01:51]} 39. Kh2 {[%clk 0:00:03]}  Rbe1 {[%clk 0:01:51]} 40. Nc3 {[%clk 0:00:01]}  Rxf2+ {[%clk 0:01:48]} 41. Kg3 {[%clk 0:00:02]}  Rc2 {[%clk 0:01:49]} 42. Rc5 {[%clk 0:00:01]}  f2 {[%clk 0:01:48]} 43. e6 {[%clk 0:00:01]}  f1=Q {[%clk 0:01:48]} 44. e7 {[%clk 0:00:02]}  Qf2# {[%clk 0:01:48]} 0-1


[Site "https://www.chess.com"]

[Event "Titled Tuesday Blitz May 23 Early 2023"]
[White "Dehtiarov, Roman"]
[Black "Hinds, Nathan"]
[WhiteFideId "14186640"]
[BlackFideId "7400730"]
[WhiteElo "2189"]
[BlackElo "2001"]
[Result "1-0"]
[Round "01"]
[TimeControl "180+2"]
[Date "2023.05.23"]
[WhiteClock "0:01:11"]
[BlackClock "0:00:11"]

1. c4 {[%clk 0:03:00]}  Nf6 {[%clk 0:02:59]} 2. Nc3 {[%clk 0:03:00]}  e6 {[%clk 0:02:59]} 3. e4 {[%clk 0:03:00]}  c5 {[%clk 0:02:57]} 4. f4 {[%clk 0:02:59]}  d6 {[%clk 0:02:56]} 5. Nf3 {[%clk 0:02:58]}  Nc6 {[%clk 0:02:56]} 6. g3 {[%clk 0:02:59]}  Be7 {[%clk 0:02:53]} 7. Bg2 {[%clk 0:02:59]}  O-O {[%clk 0:02:54]} 8. O-O {[%clk 0:02:59]}  e5 {[%clk 0:02:45]} 9. d3 {[%clk 0:02:59]}  Bg4 {[%clk 0:02:44]} 10. h3 {[%clk 0:02:57]}  Bd7 {[%clk 0:02:37]} 11. Qe2 {[%clk 0:02:52]}  Nh5 {[%clk 0:02:22]} 12. Qf2 {[%clk 0:02:50]}  exf4 {[%clk 0:02:10]} 13. gxf4 {[%clk 0:02:51]}  f5 {[%clk 0:01:58]} 14. e5 {[%clk 0:02:47]}  dxe5 {[%clk 0:01:49]} 15. Nxe5 {[%clk 0:02:47]}  Rc8 {[%clk 0:01:07]} 16. Be3 {[%clk 0:02:45]}  b6 {[%clk 0:01:06]} 17. Nd5 {[%clk 0:02:42]}  Bh4 {[%clk 0:00:49]} 18. Qf3 {[%clk 0:02:33]}  Nf6 {[%clk 0:00:42]} 19. Nxf6+ {[%clk 0:02:29]}  Bxf6 {[%clk 0:00:43]} 20. Qd5+ {[%clk 0:02:29]}  Kh8 {[%clk 0:00:42]} 21. Qxd7 {[%clk 0:02:18]}  Nxe5 {[%clk 0:00:36]} 22. Qxd8 {[%clk 0:02:17]}  Rfxd8 {[%clk 0:00:37]} 23. fxe5 {[%clk 0:02:15]}  Bxe5 {[%clk 0:00:38]} 24. Bd5 {[%clk 0:02:15]}  g6 {[%clk 0:00:37]} 25. Rad1 {[%clk 0:02:14]}  Kg7 {[%clk 0:00:36]} 26. d4 {[%clk 0:02:14]}  cxd4 {[%clk 0:00:36]} 27. Bxd4 {[%clk 0:02:15]}  Bxd4+ {[%clk 0:00:36]} 28. Rxd4 {[%clk 0:02:15]}  Re8 {[%clk 0:00:35]} 29. Bf3 {[%clk 0:02:06]}  Re7 {[%clk 0:00:34]} 30. Rfd1 {[%clk 0:02:01]}  Rcc7 {[%clk 0:00:33]} 31. b3 {[%clk 0:01:59]}  h5 {[%clk 0:00:33]} 32. h4 {[%clk 0:01:58]}  Kf6 {[%clk 0:00:33]} 33. Kf2 {[%clk 0:01:58]}  Re6 {[%clk 0:00:33]} 34. R1d2 {[%clk 0:01:56]}  Rce7 {[%clk 0:00:32]} 35. a4 {[%clk 0:01:53]}  Re1 {[%clk 0:00:30]} 36. Rd6+ {[%clk 0:01:51]}  R1e6 {[%clk 0:00:30]} 37. Rxe6+ {[%clk 0:01:51]}  Rxe6 {[%clk 0:00:30]} 38. Rd7 {[%clk 0:01:50]}  a5 {[%clk 0:00:31]} 39. Bd5 {[%clk 0:01:48]}  Re8 {[%clk 0:00:28]} 40. Rd6+ {[%clk 0:01:48]}  Ke5 {[%clk 0:00:28]} 41. Rxg6 {[%clk 0:01:37]}  Kf4 {[%clk 0:00:28]} 42. Rxb6 {[%clk 0:01:34]}  Re3 {[%clk 0:00:28]} 43. b4 {[%clk 0:01:31]}  axb4 {[%clk 0:00:23]} 44. a5 {[%clk 0:01:32]}  Ra3 {[%clk 0:00:24]} 45. a6 {[%clk 0:01:32]}  Ra2+ {[%clk 0:00:24]} 46. Ke1 {[%clk 0:01:32]}  Ke3 {[%clk 0:00:24]} 47. Kf1 {[%clk 0:01:26]}  f4 {[%clk 0:00:20]} 48. Rxb4 {[%clk 0:01:19]}  f3 {[%clk 0:00:20]} 49. Rb3+ {[%clk 0:01:19]}  Kf4 {[%clk 0:00:20]} 50. Rxf3+ {[%clk 0:01:19]}  Kg4 {[%clk 0:00:21]} 51. Rf6 {[%clk 0:01:18]}  Kxh4 {[%clk 0:00:20]} 52. Rg6 {[%clk 0:01:17]}  Ra3 {[%clk 0:00:20]} 53. Bb7 {[%clk 0:01:17]}  Ra4 {[%clk 0:00:20]} 54. c5 {[%clk 0:01:17]}  Rd4 {[%clk 0:00:20]} 55. a7 {[%clk 0:01:17]}  Ra4 {[%clk 0:00:19]} 56. a8=Q {[%clk 0:01:17]}  Rd4 {[%clk 0:00:18]} 57. Qa1 {[%clk 0:01:13]}  Rf4+ {[%clk 0:00:14]} 58. Kg1 {[%clk 0:01:12]}  Rf1+ {[%clk 0:00:11]} 59. Kxf1 {[%clk 0:01:10]}  Kh3 {[%clk 0:00:11]} 60. Qc3+ {[%clk 0:01:11]}  Kh2 {[%clk 0:00:11]} 61. Qg3# {[%clk 0:01:11]} 1-0


[Site "https://www.chess.com"]

[Event "Titled Tuesday Blitz May 23 Early 2023"]
[White "Simonian, Hrair"]
[Black "Marcziter, Dmitrii"]
[WhiteFideId "13302337"]
[BlackFideId "13900765"]
[WhiteElo "2447"]
[BlackElo "2162"]
[Result "1-0"]
[Round "01"]
[TimeControl "180+2"]
[Date "2023.05.23"]
[WhiteClock "0:00:11"]
[BlackClock "0:00:20"]

1. e4 {[%clk 0:02:45]}  c5 {[%clk 0:02:58]} 2. Nc3 {[%clk 0:02:43]}  Nc6 {[%clk 0:02:57]} 3. Bb5 {[%clk 0:02:40]}  Nd4 {[%clk 0:02:56]} 4. Bc4 {[%clk 0:02:37]}  e6 {[%clk 0:02:56]} 5. Nge2 {[%clk 0:02:33]}  a6 {[%clk 0:02:48]} 6. a4 {[%clk 0:02:27]}  Ne7 {[%clk 0:02:45]} 7. O-O {[%clk 0:02:24]}  Nec6 {[%clk 0:02:44]} 8. f4 {[%clk 0:02:20]}  f5 {[%clk 0:02:40]} 9. d3 {[%clk 0:01:41]}  g6 {[%clk 0:02:39]} 10. e5 {[%clk 0:01:36]}  Bg7 {[%clk 0:02:30]} 11. Nxd4 {[%clk 0:01:36]}  Nxd4 {[%clk 0:02:29]} 12. Ne2 {[%clk 0:01:34]}  Nc6 {[%clk 0:02:26]} 13. Be3 {[%clk 0:01:32]}  b6 {[%clk 0:02:25]} 14. d4 {[%clk 0:01:29]}  cxd4 {[%clk 0:02:23]} 15. Nxd4 {[%clk 0:01:30]}  Bb7 {[%clk 0:02:22]} 16. Nxc6 {[%clk 0:00:58]}  Bxc6 {[%clk 0:02:19]} 17. Qd4 {[%clk 0:00:55]}  b5 {[%clk 0:02:13]} 18. axb5 {[%clk 0:00:52]}  axb5 {[%clk 0:02:13]} 19. Bb3 {[%clk 0:00:52]}  O-O {[%clk 0:02:09]} 20. Qd6 {[%clk 0:00:47]}  Qc8 {[%clk 0:02:00]} 21. c3 {[%clk 0:00:40]}  Re8 {[%clk 0:01:59]} 22. Rfd1 {[%clk 0:00:31]}  Bf8 {[%clk 0:01:56]} 23. Qd2 {[%clk 0:00:29]}  Qb7 {[%clk 0:01:55]} 24. Qf2 {[%clk 0:00:26]}  Be7 {[%clk 0:01:48]} 25. h3 {[%clk 0:00:21]}  Kg7 {[%clk 0:01:46]} 26. Kh2 {[%clk 0:00:21]}  Rf8 {[%clk 0:01:45]} 27. Bc5 {[%clk 0:00:18]}  Bxc5 {[%clk 0:01:40]} 28. Qxc5 {[%clk 0:00:19]}  Bxg2 {[%clk 0:01:28]} 29. Rxa8 {[%clk 0:00:18]}  Qxa8 {[%clk 0:01:17]} 30. Rxd7+ {[%clk 0:00:16]}  Rf7 {[%clk 0:01:16]} 31. Rxf7+ {[%clk 0:00:11]}  Kxf7 {[%clk 0:01:16]} 32. Qc7+ {[%clk 0:00:11]}  Kf8 {[%clk 0:00:39]} 33. Bxe6 {[%clk 0:00:12]}  Qb7 {[%clk 0:00:39]} 34. Qd8+ {[%clk 0:00:10]}  Kg7 {[%clk 0:00:36]} 35. Qf6+ {[%clk 0:00:04]}  Kh6 {[%clk 0:00:34]} 36. Qg5+ {[%clk 0:00:04]}  Kg7 {[%clk 0:00:33]} 37. Qxg2 {[%clk 0:00:05]}  Qe7 {[%clk 0:00:30]} 38. Bd5 {[%clk 0:00:06]}  b4 {[%clk 0:00:29]} 39. e6 {[%clk 0:00:07]}  bxc3 {[%clk 0:00:29]} 40. bxc3 {[%clk 0:00:07]}  Qc5 {[%clk 0:00:28]} 41. Qd2 {[%clk 0:00:08]}  g5 {[%clk 0:00:25]} 42. Qd4+ {[%clk 0:00:09]}  Qxd4 {[%clk 0:00:24]} 43. cxd4 {[%clk 0:00:10]}  gxf4 {[%clk 0:00:25]} 44. Kg2 {[%clk 0:00:10]}  Kf6 {[%clk 0:00:26]} 45. Kf3 {[%clk 0:00:10]}  h6 {[%clk 0:00:25]} 46. Kxf4 {[%clk 0:00:11]}  h5 {[%clk 0:00:20]} 47. h4 {[%clk 0:00:11]} 1-0


[Site "https://www.chess.com"]